[Event "Late-Titled-Tuesday-Blitz-September-12-2023"]
[Site "Chess.com"]
[Date "2023.09.12"]
[Round "2"]
[White "Skagoogle"]
[Black "cukus"]
[Result "1-0"]
[WhiteElo "2780"]
[BlackElo "2417"]
[TimeControl "180+1"]
[EndTime "14:17:22 PDT"]
[Termination "Skagoogle won on time"]

1. e4 {[%clk 0:01:38.8]} 1... e5 {[%clk 0:02:50.1]} 2. Nf3 {[%clk 0:01:38.9]}
2... Nc6 {[%clk 0:02:50.1]} 3. Bc4 {[%clk 0:01:37.8]} 3... Bc5 {[%clk 0:02:49]}
4. O-O {[%clk 0:01:37.7]} 4... Nf6 {[%clk 0:02:48.8]} 5. d3 {[%clk 0:01:38]}
5... d6 {[%clk 0:02:48.3]} 6. c3 {[%clk 0:01:35.5]} 6... a6 {[%clk 0:02:48.3]}
7. Bb3 {[%clk 0:01:35.6]} 7... Ba7 {[%clk 0:02:47.9]} 8. Nbd2 {[%clk 0:01:35.1]}
8... h6 {[%clk 0:02:46.7]} 9. h3 {[%clk 0:01:32.9]} 9... g5 {[%clk 0:02:45.9]}
10. Nh2 {[%clk 0:01:28.8]} 10... h5 {[%clk 0:02:44.7]} 11. Kh1 {[%clk
0:01:19.3]} 11... h4 {[%clk 0:02:13.1]} 12. Nc4 {[%clk 0:01:16.7]} 12... Be6
{[%clk 0:02:02.1]} 13. Ne3 {[%clk 0:01:12.2]} 13... Qd7 {[%clk 0:01:55.3]} 14.
Qf3 {[%clk 0:01:05.5]} 14... Nh5 {[%clk 0:01:51.6]} 15. Nd5 {[%clk 0:01:02.8]}
15... O-O-O {[%clk 0:01:36.5]} 16. Bxg5 {[%clk 0:00:55.3]} 16... Rdg8 {[%clk
0:01:33.7]} 17. Bd2 {[%clk 0:00:55.6]} 17... Rg6 {[%clk 0:00:54]} 18. Be3 {[%clk
0:00:52.7]} 18... Kb8 {[%clk 0:00:42.5]} 19. Bxa7+ {[%clk 0:00:52.1]} 19... Nxa7
{[%clk 0:00:37.4]} 20. Rg1 {[%clk 0:00:40.3]} 20... Ng3+ {[%clk 0:00:27.2]} 21.
fxg3 {[%clk 0:00:30.1]} 21... hxg3 {[%clk 0:00:27.1]} 22. Nf6 {[%clk 0:00:21.2]}
22... Qc8 {[%clk 0:00:22.5]} 23. Bxe6 {[%clk 0:00:17.2]} 23... Qxe6 {[%clk
0:00:21.4]} 24. Nhg4 {[%clk 0:00:16.4]} 24... Rxf6 {[%clk 0:00:14.8]} 25. Qxf6
{[%clk 0:00:13.3]} 25... Qc8 {[%clk 0:00:12.1]} 26. Rgf1 {[%clk 0:00:12.1]}
26... Nc6 {[%clk 0:00:07.4]} 27. Kg1 {[%clk 0:00:12.5]} 27... Ka7 {[%clk
0:00:04.5]} 28. b4 {[%clk 0:00:12.7]} 28... Nb8 {[%clk 0:00:04.1]} 29. a4 {[%clk
0:00:12.7]} 29... Nd7 {[%clk 0:00:04.3]} 30. Qf3 {[%clk 0:00:13.5]} 30... Nb6
{[%clk 0:00:02.1]} 31. a5 {[%clk 0:00:13.4]} 31... Nd7 {[%clk 0:00:01.9]} 32.
Qxg3 {[%clk 0:00:14.1]} 32... f5 {[%clk 0:00:01.5]} 33. Qf2+ {[%clk 0:00:14.1]}
1-0

[Event "Late-Titled-Tuesday-Blitz-September-12-2023"]
[Site "Chess.com"]
[Date "2023.09.12"]
[Round "2"]
[White "lgsalazar94"]
[Black "lluiss"]
[Result "1-0"]
[WhiteElo "2455"]
[BlackElo "2173"]
[TimeControl "180+1"]
[EndTime "14:17:25 PDT"]
[Termination "lgsalazar94 won on time"]

1. c4 {[%clk 0:02:57.2]} 1... Nf6 {[%clk 0:02:59]} 2. g3 {[%clk 0:02:55.9]} 2...
c6 {[%clk 0:02:58.2]} 3. Bg2 {[%clk 0:02:52.2]} 3... d5 {[%clk 0:02:58.3]} 4.
Nf3 {[%clk 0:02:52.7]} 4... g6 {[%clk 0:02:58.4]} 5. b3 {[%clk 0:02:41.1]} 5...
Bg7 {[%clk 0:02:58.4]} 6. Bb2 {[%clk 0:02:41.6]} 6... O-O {[%clk 0:02:58.9]} 7.
O-O {[%clk 0:02:41.7]} 7... a5 {[%clk 0:02:56.1]} 8. d3 {[%clk 0:02:35.6]} 8...
a4 {[%clk 0:02:53.6]} 9. Na3 {[%clk 0:02:35.2]} 9... axb3 {[%clk 0:02:52.9]} 10.
axb3 {[%clk 0:02:36.1]} 10... Na6 {[%clk 0:02:51.9]} 11. Nc2 {[%clk 0:02:35.2]}
11... Be6 {[%clk 0:02:44.1]} 12. Ng5 {[%clk 0:01:50.1]} 12... Bd7 {[%clk
0:02:32.6]} 13. cxd5 {[%clk 0:01:47.2]} 13... cxd5 {[%clk 0:02:20.2]} 14. e4
{[%clk 0:01:35]} 14... h6 {[%clk 0:02:14.6]} 15. Nf3 {[%clk 0:01:23.4]} 15...
dxe4 {[%clk 0:01:57.1]} 16. dxe4 {[%clk 0:01:22.4]} 16... Bc6 {[%clk 0:01:56]}
17. e5 {[%clk 0:01:05.3]} 17... Nd5 {[%clk 0:01:47]} 18. Ncd4 {[%clk 0:00:30.3]}
18... Ndb4 {[%clk 0:01:46.3]} 19. Nxc6 {[%clk 0:00:26.2]} 19... Nxc6 {[%clk
0:01:46.5]} 20. Qe2 {[%clk 0:00:24.7]} 20... Qc7 {[%clk 0:01:39.9]} 21. e6
{[%clk 0:00:23.8]} 21... f6 {[%clk 0:01:11.4]} 22. Nh4 {[%clk 0:00:22.8]} 22...
g5 {[%clk 0:01:03.1]} 23. Nf5 {[%clk 0:00:21.3]} 23... Nc5 {[%clk 0:00:52.1]}
24. Qh5 {[%clk 0:00:16.8]} 24... Nxe6 {[%clk 0:00:31.1]} 25. Bd5 {[%clk
0:00:14.3]} 25... Kh7 {[%clk 0:00:12.6]} 26. Bxe6 {[%clk 0:00:12.9]} 26... Rxa1
{[%clk 0:00:11.5]} 27. Bxa1 {[%clk 0:00:11.3]} 27... Ne5 {[%clk 0:00:11.4]} 28.
Nxg7 {[%clk 0:00:10.5]} 28... Kxg7 {[%clk 0:00:10.7]} 29. Bf5 {[%clk 0:00:09.4]}
29... Rg8 {[%clk 0:00:07.1]} 30. Bxe5 {[%clk 0:00:09]} 30... Qxe5 {[%clk
0:00:06.2]} 31. Qg6+ {[%clk 0:00:09.3]} 31... Kf8 {[%clk 0:00:06.4]} 32. Qxh6+
{[%clk 0:00:09.6]} 32... Ke8 {[%clk 0:00:06.7]} 33. Qh7 {[%clk 0:00:07.7]} 33...
Rf8 {[%clk 0:00:03.6]} 34. Rd1 {[%clk 0:00:07.8]} 1-0

[Event "Late-Titled-Tuesday-Blitz-September-12-2023"]
[Site "Chess.com"]
[Date "2023.09.12"]
[Round "2"]
[White "Gentlejimmy7"]
[Black "Harald_Schmidt"]
[Result "1-0"]
[WhiteElo "2566"]
[BlackElo "2265"]
[TimeControl "180+1"]
[EndTime "14:17:27 PDT"]
[Termination "Gentlejimmy7 won by resignation"]

1. d4 {[%clk 0:03:00.9]} 1... d5 {[%clk 0:02:59.4]} 2. c4 {[%clk 0:02:59]} 2...
c6 {[%clk 0:03:00.3]} 3. Nf3 {[%clk 0:02:55.6]} 3... Nf6 {[%clk 0:03:00.2]} 4.
e3 {[%clk 0:02:55.1]} 4... e6 {[%clk 0:02:59.3]} 5. b3 {[%clk 0:02:54.3]} 5...
Bb4+ {[%clk 0:02:57.6]} 6. Nbd2 {[%clk 0:02:53.5]} 6... O-O {[%clk 0:02:56.7]}
7. Bd3 {[%clk 0:02:53.1]} 7... Nbd7 {[%clk 0:02:54.1]} 8. O-O {[%clk 0:02:52.7]}
8... c5 {[%clk 0:02:50.8]} 9. cxd5 {[%clk 0:02:47.1]} 9... Nxd5 {[%clk
0:02:45.5]} 10. Bb2 {[%clk 0:02:45.7]} 10... cxd4 {[%clk 0:02:37.3]} 11. Bxd4
{[%clk 0:02:33]} 11... N7f6 {[%clk 0:02:12.2]} 12. Nc4 {[%clk 0:02:23.3]} 12...
Bc3 {[%clk 0:02:03.1]} 13. Bxc3 {[%clk 0:02:03.6]} 13... Nxc3 {[%clk 0:02:02.2]}
14. Qc2 {[%clk 0:02:02.2]} 14... Ncd5 {[%clk 0:02:01.7]} 15. a3 {[%clk
0:01:53.9]} 15... b6 {[%clk 0:01:58.1]} 16. Rfd1 {[%clk 0:01:50.6]} 16... Qe7
{[%clk 0:01:54.7]} 17. e4 {[%clk 0:01:39.6]} 17... Nf4 {[%clk 0:01:42.9]} 18. e5
{[%clk 0:01:38.3]} 18... N6d5 {[%clk 0:01:40.2]} 19. Bxh7+ {[%clk 0:01:35.4]}
19... Kh8 {[%clk 0:01:40.1]} 20. Be4 {[%clk 0:01:35.1]} 20... Bb7 {[%clk
0:01:34.1]} 21. Nd6 {[%clk 0:01:20.9]} 21... f5 {[%clk 0:01:28.4]} 22. Bd3
{[%clk 0:00:54.2]} 22... Nxd3 {[%clk 0:01:13]} 23. Qxd3 {[%clk 0:00:49.3]} 23...
Rad8 {[%clk 0:01:11.9]} 24. Qc4 {[%clk 0:00:37.7]} 24... Ba8 {[%clk 0:01:04.1]}
25. Qh4+ {[%clk 0:00:34.7]} 25... Qxh4 {[%clk 0:01:03.3]} 26. Nxh4 {[%clk
0:00:35.6]} 26... Kh7 {[%clk 0:01:02.9]} 27. g3 {[%clk 0:00:31.2]} 27... g5
{[%clk 0:01:01.9]} 28. Nf3 {[%clk 0:00:29.7]} 28... Kg6 {[%clk 0:00:58.5]} 29.
Nd4 {[%clk 0:00:28.7]} 29... Rh8 {[%clk 0:00:49]} 30. Nxe6 {[%clk 0:00:26]}
30... Rd7 {[%clk 0:00:48.7]} 31. f3 {[%clk 0:00:18.2]} 31... g4 {[%clk
0:00:34.3]} 32. fxg4 {[%clk 0:00:16.9]} 32... fxg4 {[%clk 0:00:33]} 33. Rxd5
{[%clk 0:00:16.8]} 33... Bxd5 {[%clk 0:00:31.6]} 34. Nf4+ {[%clk 0:00:16.9]}
34... Kg5 {[%clk 0:00:25.9]} 35. Nxd5 {[%clk 0:00:17]} 35... Rdh7 {[%clk
0:00:22.2]} 36. Rf1 {[%clk 0:00:15.2]} 36... Rxh2 {[%clk 0:00:19.6]} 37. Nf7+
{[%clk 0:00:15.3]} 37... Kh5 {[%clk 0:00:16.1]} 38. Nxh8 {[%clk 0:00:13.7]}
38... Rb2 {[%clk 0:00:14.6]} 39. Re1 {[%clk 0:00:12.9]} 1-0

[Event "Late-Titled-Tuesday-Blitz-September-12-2023"]
[Site "Chess.com"]
[Date "2023.09.12"]
[Round "2"]
[White "szachmistrz2500"]
[Black "MichalL9"]
[Result "0-1"]
[WhiteElo "2443"]
[BlackElo "2232"]
[TimeControl "180+1"]
[EndTime "14:17:27 PDT"]
[Termination "MichalL9 won by checkmate"]

1. Nf3 {[%clk 0:03:00.9]} 1... c5 {[%clk 0:02:57.4]} 2. g3 {[%clk 0:03:00.5]}
2... Nc6 {[%clk 0:02:56.9]} 3. Bg2 {[%clk 0:03:01.4]} 3... d5 {[%clk 0:02:57]}
4. O-O {[%clk 0:03:02.3]} 4... Nf6 {[%clk 0:02:57.1]} 5. d3 {[%clk 0:03:03.2]}
5... e5 {[%clk 0:02:56.9]} 6. Nbd2 {[%clk 0:03:01.9]} 6... Be7 {[%clk
0:02:56.7]} 7. e4 {[%clk 0:03:02]} 7... O-O {[%clk 0:02:56.8]} 8. Re1 {[%clk
0:03:00.1]} 8... Qc7 {[%clk 0:02:53.5]} 9. exd5 {[%clk 0:02:54.9]} 9... Nxd5
{[%clk 0:02:54.4]} 10. Nxe5 {[%clk 0:02:53.6]} 10... Nxe5 {[%clk 0:02:51.2]} 11.
Bxd5 {[%clk 0:02:53.6]} 11... Bg4 {[%clk 0:02:47.2]} 12. Nf3 {[%clk 0:02:51.9]}
12... Rad8 {[%clk 0:02:43.4]} 13. h3 {[%clk 0:02:36]} 13... Rxd5 {[%clk
0:02:30.2]} 14. hxg4 {[%clk 0:02:33.9]} 14... Nxg4 {[%clk 0:02:30.8]} 15. Bf4
{[%clk 0:02:27.9]} 15... Qd7 {[%clk 0:02:30.1]} 16. Qe2 {[%clk 0:02:25.5]} 16...
Bf6 {[%clk 0:02:29.3]} 17. Rab1 {[%clk 0:02:02]} 17... h6 {[%clk 0:02:26.2]} 18.
b4 {[%clk 0:01:57.9]} 18... Bc3 {[%clk 0:02:15.6]} 19. Bd2 {[%clk 0:01:55.7]}
19... cxb4 {[%clk 0:02:12.2]} 20. Bxc3 {[%clk 0:01:50.1]} 20... bxc3 {[%clk
0:02:13.1]} 21. Qe4 {[%clk 0:01:47.7]} 21... Nf6 {[%clk 0:02:09.2]} 22. Qb4
{[%clk 0:01:44.7]} 22... Rh5 {[%clk 0:01:59.2]} 23. Nh4 {[%clk 0:01:29.2]} 23...
Qh3 {[%clk 0:01:53.9]} 24. Qxb7 {[%clk 0:01:20]} 24... Nd5 {[%clk 0:01:26.4]}
25. Rb5 {[%clk 0:01:12.3]} 25... Rd8 {[%clk 0:01:08.6]} 26. Re7 {[%clk
0:00:54.5]} 26... Rxh4 {[%clk 0:01:02.8]} 27. gxh4 {[%clk 0:00:50.6]} 27... Qg4+
{[%clk 0:00:41.9]} 28. Kf1 {[%clk 0:00:48.2]} 28... Nf4 {[%clk 0:00:40.8]} 29.
Rb1 {[%clk 0:00:26.5]} 29... Qh3+ {[%clk 0:00:16.4]} 30. Ke1 {[%clk 0:00:21.3]}
30... Qxh4 {[%clk 0:00:16.7]} 31. Qf3 {[%clk 0:00:14.8]} 31... Qxe7+ {[%clk
0:00:15.8]} 32. Kf1 {[%clk 0:00:15.2]} 32... Qh4 {[%clk 0:00:15.2]} 33. Rb4
{[%clk 0:00:14.1]} 33... Qh3+ {[%clk 0:00:14.8]} 34. Qxh3 {[%clk 0:00:12.3]}
34... Nxh3 {[%clk 0:00:15.7]} 35. Rc4 {[%clk 0:00:12.8]} 35... Re8 {[%clk
0:00:13.8]} 36. Rxc3 {[%clk 0:00:12.5]} 36... Nf4 {[%clk 0:00:14.3]} 37. Rc7
{[%clk 0:00:11.9]} 37... a6 {[%clk 0:00:13]} 38. Rc6 {[%clk 0:00:11.4]} 38...
Rb8 {[%clk 0:00:13.4]} 39. Rxa6 {[%clk 0:00:09.3]} 39... Rb1# {[%clk 0:00:12.9]}
0-1

[Event "Late-Titled-Tuesday-Blitz-September-12-2023"]
[Site "Chess.com"]
[Date "2023.09.12"]
[Round "2"]
[White "Aleksandar-Topalov"]
[Black "Lennis93"]
[Result "0-1"]
[WhiteElo "2354"]
[BlackElo "2715"]
[TimeControl "180+1"]
[EndTime "14:17:28 PDT"]
[Termination "Lennis93 won on time"]

1. b3 {[%clk 0:03:00.9]} 1... e5 {[%clk 0:02:59.7]} 2. Bb2 {[%clk 0:03:00.6]}
2... Nc6 {[%clk 0:03:00.4]} 3. c4 {[%clk 0:03:00.4]} 3... Nf6 {[%clk 0:03:00.3]}
4. e3 {[%clk 0:03:00.3]} 4... a6 {[%clk 0:02:55.3]} 5. Nf3 {[%clk 0:02:59]} 5...
d6 {[%clk 0:02:39.9]} 6. d4 {[%clk 0:02:58.4]} 6... e4 {[%clk 0:02:38.6]} 7. d5
{[%clk 0:02:58.4]} 7... exf3 {[%clk 0:02:28]} 8. dxc6 {[%clk 0:02:57.8]} 8...
bxc6 {[%clk 0:02:19.9]} 9. Qxf3 {[%clk 0:02:57.7]} 9... d5 {[%clk 0:02:17.7]}
10. Nc3 {[%clk 0:02:49]} 10... Bb4 {[%clk 0:02:16.3]} 11. a3 {[%clk 0:01:44.8]}
11... Bd6 {[%clk 0:02:14.5]} 12. h3 {[%clk 0:01:31.3]} 12... Rb8 {[%clk
0:02:14.2]} 13. Qd1 {[%clk 0:01:16.7]} 13... O-O {[%clk 0:01:57.1]} 14. Be2
{[%clk 0:01:12.4]} 14... a5 {[%clk 0:01:47.6]} 15. O-O {[%clk 0:01:10.9]} 15...
Bf5 {[%clk 0:01:46.8]} 16. cxd5 {[%clk 0:01:02.4]} 16... cxd5 {[%clk 0:01:45.3]}
17. Nb5 {[%clk 0:00:59.7]} 17... Be7 {[%clk 0:01:19.3]} 18. Rc1 {[%clk
0:00:54.2]} 18... c5 {[%clk 0:01:00]} 19. Bxf6 {[%clk 0:00:49.3]} 19... gxf6
{[%clk 0:00:51]} 20. a4 {[%clk 0:00:44.1]} 20... Kh8 {[%clk 0:00:50.7]} 21. Bd3
{[%clk 0:00:30.8]} 21... Qd7 {[%clk 0:00:34.5]} 22. Bxf5 {[%clk 0:00:20.1]}
22... Qxf5 {[%clk 0:00:35.4]} 23. Qg4 {[%clk 0:00:18.5]} 23... Qe6 {[%clk
0:00:34.1]} 24. Rfd1 {[%clk 0:00:16.8]} 24... Rg8 {[%clk 0:00:34.1]} 25. Qf3
{[%clk 0:00:16.5]} 25... Rg5 {[%clk 0:00:26.1]} 26. Nc7 {[%clk 0:00:11.1]} 26...
Qe5 {[%clk 0:00:24]} 27. Nxd5 {[%clk 0:00:10.4]} 27... Rxb3 {[%clk 0:00:24.5]}
28. Nf4 {[%clk 0:00:05.7]} 28... Kg7 {[%clk 0:00:16.4]} 29. Rd5 {[%clk
0:00:04.4]} 29... Qb2 {[%clk 0:00:16.4]} 30. Rcd1 {[%clk 0:00:04.4]} 30... Ra3
{[%clk 0:00:13.1]} 31. Nh5+ {[%clk 0:00:04.3]} 31... Kg6 {[%clk 0:00:12.3]} 32.
Nf4+ {[%clk 0:00:03.6]} 32... Kh6 {[%clk 0:00:12]} 33. Rxg5 {[%clk 0:00:02.4]}
33... fxg5 {[%clk 0:00:12.9]} 34. Qh5+ {[%clk 0:00:02.3]} 34... Kg7 {[%clk
0:00:12.8]} 35. Qg4 {[%clk 0:00:01.5]} 35... Qe5 {[%clk 0:00:11.7]} 36. Nh5+
{[%clk 0:00:01.3]} 36... Kg6 {[%clk 0:00:11.9]} 0-1

[Event "Late-Titled-Tuesday-Blitz-September-12-2023"]
[Site "Chess.com"]
[Date "2023.09.12"]
[Round "2"]
[White "econpower"]
[Black "KafkaesqueKnight"]
[Result "1-0"]
[WhiteElo "2764"]
[BlackElo "2399"]
[TimeControl "180+1"]
[EndTime "14:17:30 PDT"]
[Termination "econpower won on time"]

1. d4 {[%clk 0:03:00.9]} 1... Nf6 {[%clk 0:02:59.3]} 2. Nf3 {[%clk 0:03:01]}
2... d5 {[%clk 0:02:58.6]} 3. c4 {[%clk 0:03:00.9]} 3... e6 {[%clk 0:02:58.6]}
4. g3 {[%clk 0:03:01.3]} 4... dxc4 {[%clk 0:02:58]} 5. Bg2 {[%clk 0:03:01.1]}
5... c6 {[%clk 0:02:58.4]} 6. O-O {[%clk 0:03:01.3]} 6... Be7 {[%clk 0:02:52.1]}
7. Qc2 {[%clk 0:03:00.3]} 7... b5 {[%clk 0:02:50.5]} 8. e4 {[%clk 0:03:00.8]}
8... O-O {[%clk 0:02:50]} 9. h4 {[%clk 0:03:00]} 9... Bb7 {[%clk 0:02:48.1]} 10.
Nc3 {[%clk 0:02:57.8]} 10... a6 {[%clk 0:02:43.2]} 11. e5 {[%clk 0:02:55.5]}
11... Nd5 {[%clk 0:02:40.2]} 12. Ne4 {[%clk 0:02:56.4]} 12... Nd7 {[%clk
0:02:35.3]} 13. Bg5 {[%clk 0:02:48]} 13... Nb4 {[%clk 0:02:20.1]} 14. Qe2 {[%clk
0:02:44.3]} 14... Nd3 {[%clk 0:02:16.9]} 15. b3 {[%clk 0:02:44.4]} 15... c5
{[%clk 0:02:06.2]} 16. bxc4 {[%clk 0:02:44.1]} 16... bxc4 {[%clk 0:02:04.5]} 17.
dxc5 {[%clk 0:02:44]} 17... N7xc5 {[%clk 0:01:52.8]} 18. Nxc5 {[%clk 0:02:43.7]}
18... Nxc5 {[%clk 0:01:53.7]} 19. Qxc4 {[%clk 0:02:44]} 19... Rc8 {[%clk
0:01:52.1]} 20. Rfd1 {[%clk 0:02:38.9]} 20... Bd5 {[%clk 0:01:51.7]} 21. Qg4
{[%clk 0:02:34.5]} 21... Nd7 {[%clk 0:01:28]} 22. Bh6 {[%clk 0:02:29.4]} 22...
g6 {[%clk 0:01:27.3]} 23. Bxf8 {[%clk 0:02:29.1]} 23... Bxf8 {[%clk 0:01:28.2]}
24. Rac1 {[%clk 0:02:24.4]} 24... Rxc1 {[%clk 0:01:22.1]} 25. Rxc1 {[%clk
0:02:24.5]} 25... Bxa2 {[%clk 0:01:22.1]} 26. Qa4 {[%clk 0:02:19.1]} 26... Bd5
{[%clk 0:01:19.1]} 27. Qxa6 {[%clk 0:02:19.6]} 27... Qb6 {[%clk 0:01:12.9]} 28.
Qc8 {[%clk 0:01:37.9]} 28... Nc5 {[%clk 0:01:06.1]} 29. Ng5 {[%clk 0:01:15.9]}
29... Nd3 {[%clk 0:01:01.5]} 30. Rf1 {[%clk 0:01:13.1]} 30... Nxe5 {[%clk
0:00:39.5]} 31. Bxd5 {[%clk 0:00:51]} 31... exd5 {[%clk 0:00:38.6]} 32. Qe8
{[%clk 0:00:50.7]} 32... Qc7 {[%clk 0:00:20.3]} 33. Re1 {[%clk 0:00:45.8]} 33...
Nd3 {[%clk 0:00:19.9]} 34. Rd1 {[%clk 0:00:45.6]} 34... h6 {[%clk 0:00:12.3]}
35. Nxf7 {[%clk 0:00:33.2]} 35... Nxf2 {[%clk 0:00:11.1]} 36. Nxh6+ {[%clk
0:00:32.8]} 36... Kg7 {[%clk 0:00:11.2]} 37. Kxf2 {[%clk 0:00:30]} 37... Qc2+
{[%clk 0:00:10.6]} 38. Qe2 {[%clk 0:00:30.3]} 38... Bc5+ {[%clk 0:00:10.1]} 39.
Kf1 {[%clk 0:00:30.5]} 39... Qc3 {[%clk 0:00:03]} 40. Ng4 {[%clk 0:00:28.3]}
40... Qxg3 {[%clk 0:00:02.1]} 41. Qe5+ {[%clk 0:00:28.5]} 41... Qxe5 {[%clk
0:00:01.8]} 42. Nxe5 {[%clk 0:00:29.4]} 1-0

[Event "Late-Titled-Tuesday-Blitz-September-12-2023"]
[Site "Chess.com"]
[Date "2023.09.12"]
[Round "2"]
[White "m_ezat"]
[Black "falzehope0"]
[Result "1-0"]
[WhiteElo "2662"]
[BlackElo "2393"]
[TimeControl "180+1"]
[EndTime "14:17:30 PDT"]
[Termination "m_ezat won by resignation"]

1. d4 {[%clk 0:03:00.9]} 1... e6 {[%clk 0:02:59.1]} 2. c4 {[%clk 0:02:58.9]}
2... d5 {[%clk 0:02:57.8]} 3. Nc3 {[%clk 0:02:58.6]} 3... f5 {[%clk 0:02:57.3]}
4. e3 {[%clk 0:02:57.4]} 4... c6 {[%clk 0:02:57.5]} 5. Qc2 {[%clk 0:02:53]} 5...
Nf6 {[%clk 0:02:57.6]} 6. Bd3 {[%clk 0:02:53.4]} 6... Be7 {[%clk 0:02:48.7]} 7.
Nge2 {[%clk 0:02:53.4]} 7... O-O {[%clk 0:02:48.3]} 8. f3 {[%clk 0:02:43.9]}
8... Na6 {[%clk 0:02:42.9]} 9. a3 {[%clk 0:01:29.1]} 9... Nc7 {[%clk 0:02:37.7]}
10. O-O {[%clk 0:01:16.6]} 10... Nh5 {[%clk 0:02:29.1]} 11. Bd2 {[%clk
0:01:12.4]} 11... Bd6 {[%clk 0:02:25.5]} 12. e4 {[%clk 0:01:07.7]} 12... Ne8
{[%clk 0:01:54.5]} 13. e5 {[%clk 0:01:05.6]} 13... Bc7 {[%clk 0:01:45.3]} 14. g4
{[%clk 0:01:05.7]} 14... Qh4 {[%clk 0:01:39]} 15. gxh5 {[%clk 0:01:04.7]} 15...
Qxh5 {[%clk 0:01:38.7]} 16. Nf4 {[%clk 0:01:01.2]} 16... Qf7 {[%clk 0:01:33.2]}
17. h4 {[%clk 0:00:55.1]} 17... Kh8 {[%clk 0:01:31.9]} 18. Rf2 {[%clk 0:00:49]}
18... Bd8 {[%clk 0:01:26.1]} 19. Rh2 {[%clk 0:00:47.5]} 19... b6 {[%clk
0:01:22.6]} 20. Kh1 {[%clk 0:00:43.3]} 20... Bb7 {[%clk 0:01:18.5]} 21. Rg1
{[%clk 0:00:41.9]} 21... Be7 {[%clk 0:01:13.2]} 22. cxd5 {[%clk 0:00:41.3]}
22... exd5 {[%clk 0:01:06.4]} 23. h5 {[%clk 0:00:40.6]} 23... Nc7 {[%clk
0:00:59.5]} 24. Ng6+ {[%clk 0:00:34.5]} 24... Kg8 {[%clk 0:00:57.3]} 25. Bf4
{[%clk 0:00:29.6]} 25... Rfe8 {[%clk 0:00:51.6]} 26. Bxf5 {[%clk 0:00:28]} 26...
Ne6 {[%clk 0:00:48.8]} 27. Ne2 {[%clk 0:00:25.3]} 27... Nxf4 {[%clk 0:00:33.2]}
28. Nexf4 {[%clk 0:00:24.4]} 28... Bd8 {[%clk 0:00:27]} 29. Nh4 {[%clk
0:00:14.3]} 29... Qc7 {[%clk 0:00:13.1]} 30. Bxh7+ {[%clk 0:00:13.7]} 30... Kh8
{[%clk 0:00:08.4]} 31. Bf5 {[%clk 0:00:08.5]} 31... Kg8 {[%clk 0:00:07.6]} 32.
h6 {[%clk 0:00:08.3]} 32... Re7 {[%clk 0:00:06.8]} 33. h7+ {[%clk 0:00:07.7]}
33... Kf7 {[%clk 0:00:05.8]} 34. Nhg6 {[%clk 0:00:07.8]} 34... Re6 {[%clk
0:00:04.2]} 35. Bxe6+ {[%clk 0:00:07.3]} 1-0

[Event "Late-Titled-Tuesday-Blitz-September-12-2023"]
[Site "Chess.com"]
[Date "2023.09.12"]
[Round "2"]
[White "larsmandreassen"]
[Black "zverr1"]
[Result "0-1"]
[WhiteElo "2206"]
[BlackElo "2474"]
[TimeControl "180+1"]
[EndTime "14:17:31 PDT"]
[Termination "zverr1 won on time"]

1. d4 {[%clk 0:03:00.9]} 1... Nf6 {[%clk 0:03:00.4]} 2. Nf3 {[%clk 0:03:01.8]}
2... g6 {[%clk 0:03:00.8]} 3. c4 {[%clk 0:02:59.3]} 3... Bg7 {[%clk 0:03:01.1]}
4. Nc3 {[%clk 0:03:00.2]} 4... d5 {[%clk 0:03:01.7]} 5. cxd5 {[%clk 0:02:54.8]}
5... Nxd5 {[%clk 0:03:02.6]} 6. Na4 {[%clk 0:02:54.5]} 6... Bf5 {[%clk
0:02:55.1]} 7. Qb3 {[%clk 0:02:44.6]} 7... Nb6 {[%clk 0:02:52.2]} 8. Nc5 {[%clk
0:02:40.2]} 8... O-O {[%clk 0:02:45.3]} 9. e4 {[%clk 0:02:37.7]} 9... Bg4 {[%clk
0:02:42]} 10. Be3 {[%clk 0:02:37.3]} 10... Nc6 {[%clk 0:02:31.1]} 11. Nxb7
{[%clk 0:02:24.6]} 11... Qc8 {[%clk 0:02:28.2]} 12. Nc5 {[%clk 0:02:05.3]} 12...
Bxf3 {[%clk 0:02:26.8]} 13. gxf3 {[%clk 0:02:05.3]} 13... Nxd4 {[%clk
0:02:27.4]} 14. Qd1 {[%clk 0:01:55.4]} 14... Rd8 {[%clk 0:02:17.5]} 15. Rc1
{[%clk 0:01:32.1]} 15... Nf5 {[%clk 0:02:09.7]} 16. Qc2 {[%clk 0:01:29.8]} 16...
Nxe3 {[%clk 0:02:08.2]} 17. fxe3 {[%clk 0:01:30.7]} 17... a5 {[%clk 0:01:54.2]}
18. h4 {[%clk 0:01:23.6]} 18... Nd7 {[%clk 0:01:27.6]} 19. Bh3 {[%clk
0:01:21.7]} 19... e6 {[%clk 0:01:23.7]} 20. Nd3 {[%clk 0:01:00.5]} 20... Qa6
{[%clk 0:01:18.2]} 21. Kf2 {[%clk 0:00:53.7]} 21... Rab8 {[%clk 0:01:16.5]} 22.
Rhd1 {[%clk 0:00:46.8]} 22... Nf6 {[%clk 0:01:07.5]} 23. b3 {[%clk 0:00:40.8]}
23... Nh5 {[%clk 0:01:03.8]} 24. e5 {[%clk 0:00:36.4]} 24... a4 {[%clk
0:00:49.4]} 25. Bg4 {[%clk 0:00:31.1]} 25... axb3 {[%clk 0:00:48.9]} 26. axb3
{[%clk 0:00:31.5]} 26... Qb6 {[%clk 0:00:41.5]} 27. Bxh5 {[%clk 0:00:30.4]}
27... gxh5 {[%clk 0:00:42.4]} 28. b4 {[%clk 0:00:27.3]} 28... Kh8 {[%clk
0:00:42.4]} 29. f4 {[%clk 0:00:24.9]} 29... Bf8 {[%clk 0:00:36.6]} 30. Qxc7
{[%clk 0:00:17.8]} 30... Qa6 {[%clk 0:00:17.9]} 31. Ke2 {[%clk 0:00:09.6]} 31...
Rbc8 {[%clk 0:00:13.3]} 32. Qxf7 {[%clk 0:00:07]} 32... Rxc1 {[%clk 0:00:12.6]}
33. Qf6+ {[%clk 0:00:07.3]} 33... Kg8 {[%clk 0:00:09.1]} 34. Qg5+ {[%clk
0:00:03.6]} 34... Kf7 {[%clk 0:00:09.4]} 35. Qf6+ {[%clk 0:00:03.6]} 35... Ke8
{[%clk 0:00:09.9]} 0-1